bitfinex/quotes_ETHUSD_20220123
["timestamp","ask_amount","ask_price","bid_price","bid_amount"]
[1642923403377,1.4957415,2493.6,2492.7,3.41047965]
[1642923403576,1.4957415,2493.6,2492.8,1.0]
[1642923403975,1.4957415,2493.6,2492.6,1.178]
[1642923404175,1.4957415,2493.6,2492.7,3.4104564]
[1642923404382,1.3559,2493.7,2492.8,1.04089498]
[1642923404383,0.1603,2493.7,2492.8,1.04089498]
[1642923404583,0.1603,2494.1,2492.9,4.1888364]
[1642923404783,0.1603,2494.6,2493.1,0.01271451]
[1642923404981,2.70285045,2494.7,2493.1,0.01271451]
[1642923404982,2.70285045,2494.7,2493.2,4.22247956]
[1642923405184,2.70285045,2494.7,2493.4,0.02719352]
[1642923405381,2.70285045,2494.7,2493.7,0.03866372]
[1642923405629,2.70285045,2494.7,2493.8,0.71619997]
[1642923405837,2.70285045,2494.7,2493.9,0.04712413]
[1642923406028,1.377203,2494.9,2494.0,0.578]
[1642923406229,0.1603,2494.8,2494.0,0.878]
[1642923406528,1.377203,2494.9,2494.0,1.178]
[1642923406729,1.2853,2495.3,2494.0,1.178]
[1642923408435,9.55525558,2495.3,2493.8,0.13819997]
[1642923408631,1.54408402,2494.4,2493.8,0.13819997]
[1642923408831,0.1603,2494.3,2493.8,0.13819997]
[1642923409785,0.1603,2494.3,2493.6,1.5]
[1642923409982,1.14468007,2494.0,2493.6,1.5]
[1642923410784,1.14468007,2494.0,2493.6,5.5]
[1642923411287,0.1603,2493.9,2493.6,5.5]
[1642923412384,0.1603,2493.9,2493.6,0.0001]
[1642923412583,1.212,2493.8,2493.6,0.0001]
[1642923412785,5.3603,2493.7,2493.6,0.0001]
[1642923413039,29.80238994,2493.7,2493.6,0.0001]
[1642923413327,29.75238994,2493.7,2493.6,0.0001]
[1642923413526,35.52338994,2493.7,2493.6,0.0001]
[1642923414530,5.9313,2493.7,2493.6,0.0001]
[1642923414929,5.771,2493.7,2493.6,0.0001]
[1642923415730,1.212,2493.8,2493.6,0.0001]
[1642923416334,0.1603,2494.0,2493.6,0.0001]
[1642923416530,1.1623,2494.1,2493.7,0.578]
[1642923417178,1.1407,2494.2,2493.7,0.578]
[1642923417379,1.1407,2494.2,2493.8,0.03353088]
[1642923417681,1.1842,2494.7,2493.8,0.61153088]
[1642923417880,1.1842,2494.7,2493.8,0.578]
[1642923418482,0.1603,2494.6,2493.8,0.578]
[1642923418683,1.1842,2494.7,2493.8,0.578]
[1642923418887,1.19389928,2494.5,2493.8,0.578]
[1642923419886,1.1842,2494.7,2493.8,0.578]
[1642923420089,1.1842,2494.7,2493.9,4.61729684]
[1642923420289,1.1842,2494.7,2494.0,0.578]
[1642923420535,1.1842,2494.7,2494.2,0.03591149]
[1642923420729,1.1842,2494.7,2494.3,0.578]
[1642923420930,2.65125425,2494.7,2494.3,0.578]
[1642923421332,1.1842,2494.7,2494.3,0.578]
[1642923422532,2.62725249,2494.7,2494.3,0.578]
[1642923422832,2.62725249,2494.7,2493.8,0.578]
[1642923423031,0.1603,2494.6,2493.6,0.0001]
[1642923423231,0.1603,2494.6,2493.5,0.578]
[1642923423431,0.1603,2494.6,2493.6,4.6012963]
[1642923424039,0.1603,2494.6,2493.7,1.0]
[1642923424271,1.12808732,2494.4,2493.7,1.0]
[1642923424673,1.12808732,2494.4,2493.7,5.54138622]
[1642923424874,1.12808732,2494.4,2493.7,1.0]
[1642923425075,1.12808732,2494.4,2493.5,0.578]
[1642923425076,1.09604751,2494.4,2493.5,1.178]
[1642923425279,1.09604751,2494.4,2493.5,0.578]
[1642923425280,1.39604751,2494.4,2493.5,0.578]
[1642923425482,1.48013954,2493.8,2493.1,0.1603]
[1642923426282,1.48013954,2493.8,2492.9,0.578]
[1642923427079,1.48013954,2493.8,2493.0,4.66946087]
[1642923427279,10.9596,2494.1,2493.0,4.66946087]
[1642923427480,6.0433,2494.1,2493.0,4.66946087]
[1642923427681,1.1678,2494.2,2493.2,0.07428883]
[1642923427881,1.1678,2494.2,2493.4,0.03896518]
[1642923428128,1.1678,2494.2,2493.4,4.6253932]
[1642923428326,1.1678,2494.2,2493.3,0.59087298]
[1642923428327,1.50511612,2494.1,2493.3,0.578]
[1642923429028,2.80511612,2494.1,2492.9,0.578]
[1642923429630,0.00503279,2494.0,2492.9,0.578]
[1642923429831,1.5464328,2493.5,2492.9,0.578]
[1642923430031,1.5464328,2493.5,2492.9,0.878]
[1642923430233,1.3,2494.1,2492.9,0.878]
[1642923430433,0.3,2494.1,2492.9,0.878]
[1642923430732,2.3178,2494.2,2492.9,0.878]
[1642923431032,1.3178,2494.2,2492.9,0.878]
[1642923431232,0.7178,2494.2,2493.0,0.3]
[1642923431435,1.2125741,2494.0,2493.0,0.3]
[1642923431788,1.2125741,2494.0,2493.0,1.3]
[1642923433187,1.2125741,2494.0,2493.0,0.3]
[1642923433985,1.2125741,2494.0,2492.9,4.3]
[1642923434188,1.2125741,2494.0,2492.9,4.0]
[1642923434189,1.14092583,2493.2,2492.9,4.0]
[1642923434602,23.65841297,2493.8,2492.9,4.0]
[1642923434991,23.95841297,2493.8,2492.9,4.0]
[1642923435193,17.6008,2493.8,2492.9,4.0]
[1642923435634,1.12930544,2493.4,2492.9,4.0]
[1642923435834,17.3008,2493.8,2492.9,4.0]
[1642923435835,13.4225,2493.8,2493.0,0.05992058]
[1642923436034,13.4225,2493.8,2492.9,4.3]
[1642923436637,13.4225,2493.8,2492.9,4.0]
[1642923436841,1.19392035,2493.4,2492.9,4.0]
[1642923438342,1.22637486,2493.0,2492.9,4.0]
[1642923438739,24.6154,2493.6,2492.9,4.0]
[1642923438939,25.2154,2493.6,2492.9,4.0]
[1642923439140,25.2154,2493.6,2493.0,0.03215814]
[1642923439141,1.1854,2493.6,2493.0,0.03215814]
[1642923439393,1.1854,2493.6,2492.9,4.0]
[1642923439793,1.29502385,2493.4,2492.9,4.0]
[1642923441298,1.29502385,2493.4,2493.0,0.04541876]
[1642923441495,1.29502385,2493.4,2492.9,4.0]
[1642923441698,1.1854,2493.6,2492.9,4.0]
[1642923442498,1.1854,2493.6,2493.0,1.0]
[1642923442699,1.1854,2493.6,2493.0,1.3]
[1642923442899,6.0791,2493.8,2493.0,0.6]
[1642923443136,6.0791,2493.8,2493.1,0.10979466]
[1642923443336,6.0791,2493.8,2493.1,5.73555262]
[1642923443535,6.0791,2493.8,2493.0,1.6]
[1642923443735,6.0791,2493.8,2493.1,4.47378714]
[1642923443736,7.24818988,2493.8,2493.1,4.47378714]
[1642923444144,7.24818988,2493.8,2493.1,0.3]
[1642923444441,7.24818988,2493.8,2493.0,0.3]
[1642923444645,7.24818988,2493.8,2493.0,1.3]
[1642923444842,7.24818988,2493.8,2492.9,4.0]
[1642923444843,1.14934384,2493.4,2492.9,4.0]
[1642923445543,6.0791,2493.8,2492.9,4.0]
[1642923446142,6.0791,2493.8,2493.0,1.0]
[1642923446443,6.0791,2493.8,2492.9,4.0]
[1642923446643,1.34604806,2493.4,2492.9,4.0]
[1642923447481,0.01463785,2493.3,2492.9,4.0]
[1642923447682,1.34604806,2493.4,2492.9,4.0]
[1642923450191,1.34604806,2493.4,2493.0,0.02875618]
[1642923450384,1.34604806,2493.4,2493.0,4.51163532]
[1642923450823,1.34604806,2493.4,2492.9,4.0]
[1642923452728,1.34505704,2493.4,2492.9,4.0]
[1642923453529,1.34505704,2493.4,2493.0,0.08513829]
[1642923453929,1.34505704,2493.4,2492.9,4.0]
[1642923454381,1.34505704,2493.4,2493.0,3.41024146]
[1642923454585,1.34505704,2493.4,2493.0,4.5335615]
[1642923454985,1.34505704,2493.4,2493.0,4.6233069]
[1642923455282,1.1609,2493.9,2493.1,3.41016835]
[1642923455584,10.0,2494.0,2493.2,6.89966486]
[1642923455782,10.0,2494.0,2493.2,7.47766486]
[1642923455985,10.0,2494.0,2493.4,0.0481494]
[1642923456183,9.1635,2494.0,2493.5,3.98816835]
[1642923456385,0.0103,2494.6,2493.7,4.6]
[1642923456684,0.0103,2494.6,2493.8,9.27866109]
[1642923456888,0.0103,2494.6,2493.9,0.20038]
[1642923457086,0.0103,2494.6,2494.2,0.01268172]
[1642923457284,0.0103,2494.6,2494.3,0.96469994]
[1642923457488,0.0103,2494.6,2494.4,4.93585706]
[1642923457785,0.0103,2494.6,2494.5,3.878]
[1642923458029,0.0103,2494.6,2494.5,0.578]
[1642923458231,0.0103,2494.6,2494.4,0.6]
[1642923458429,0.0103,2494.6,2494.3,0.82639994]
[1642923458628,0.0103,2494.6,2494.3,0.22639994]
[1642923460039,0.0103,2494.6,2494.4,0.05953139]
[1642923460437,0.0103,2494.6,2494.3,0.22639994]
[1642923462979,0.0103,2494.6,2494.3,8.86479011]
[1642923463181,0.0103,2494.6,2494.3,8.81597043]
[1642923463380,0.0103,2494.6,2494.3,4.22639994]
[1642923463583,0.0103,2494.6,2494.3,8.8684275]
[1642923463784,0.0103,2494.6,2494.3,4.22639994]
[1642923465528,0.0103,2494.6,2494.3,4.0]
[1642923465729,1.44589131,2494.5,2494.3,4.0]
[1642923465928,4.6,2494.4,2493.0,4.98526317]
[1642923466127,0.01439725,2494.1,2492.6,0.578]
[1642923466327,10.857,2494.3,2492.7,7.97970931]
[1642923466526,10.857,2494.3,2492.8,3.40984613]
[1642923466727,10.857,2494.3,2492.9,4.67828964]
[1642923466929,10.857,2494.3,2493.0,3.40984613]
[1642923467427,10.857,2494.3,2492.7,5.28889966]
[1642923467632,10.857,2494.3,2492.8,3.40981561]
[1642923467830,10.857,2494.3,2492.9,4.95809397]
[1642923468030,10.857,2494.3,2493.0,3.40981561]
[1642923468431,10.857,2494.3,2492.9,3.70981561]
[1642923468631,10.857,2494.3,2493.0,8.06222984]
[1642923468830,10.857,2494.3,2493.0,4.65240035]
[1642923469272,1.13365976,2493.9,2493.0,4.65240035]
[1642923472682,1.13365976,2493.9,2493.0,8.65240035]
[1642923473126,1.13365976,2493.9,2493.1,0.02618427]
[1642923473527,1.13365976,2493.9,2493.0,9.65240035]
[1642923474128,1.13365976,2493.9,2493.1,3.70971858]
[1642923474331,12.0161,2494.3,2493.2,5.26259448]
[1642923474531,12.0161,2494.3,2493.2,5.56259448]
[1642923474732,12.0161,2494.3,2493.2,0.3]
[1642923475133,12.0161,2494.3,2493.0,5.6]
[1642923475334,1.26937554,2494.1,2493.0,5.6]
[1642923476533,1.26937554,2494.1,2493.2,0.04619942]
[1642923476776,1.26937554,2494.1,2493.0,5.6]
[1642923477181,1.28165263,2493.7,2493.0,5.6]
[1642923479180,1.31388026,2493.3,2493.0,4.6]
[1642923479383,12.0161,2494.3,2493.5,2.32334672]
[1642923480384,1.18301163,2493.8,2493.5,1.82334672]
[1642923481939,1.18301163,2493.8,2493.5,2.12334672]
[1642923482141,1.18301163,2493.8,2493.5,1.82334672]
[1642923483039,1.18301163,2493.8,2493.6,0.03855972]
[1642923483242,1.18301163,2493.8,2493.5,1.82334672]
[1642923484039,1.18301163,2493.8,2493.5,5.82334672]
[1642923484275,1.18301163,2493.8,2493.6,0.02866789]
[1642923484479,1.18301163,2493.8,2493.5,5.82334672]
[1642923485481,1.18301163,2493.8,2492.5,3.9892]
[1642923485482,4.9,2493.7,2492.5,3.9892]
[1642923485681,6.1401,2493.7,2492.5,3.9892]
[1642923485882,5.8401,2493.7,2492.5,3.9892]
[1642923486088,6.1401,2493.7,2492.5,3.9892]
[1642923486482,6.1401,2493.7,2492.4,0.22639994]
[1642923486684,6.1401,2493.7,2492.5,3.41050628]
[1642923486882,1.10427475,2492.7,2492.5,3.41050628]
[1642923487082,6.4401,2493.7,2492.5,3.41050628]
[1642923487683,5.8401,2493.7,2492.5,3.41050628]
[1642923488034,1.2401,2493.7,2492.6,0.97104317]
[1642923488235,0.0103,2494.6,2492.7,3.41050628]
[1642923488437,1.1664,2494.2,2493.0,0.01224957]
[1642923488640,1.1664,2494.2,2493.1,4.0839806]
[1642923488834,1.1664,2494.2,2493.1,0.878]
[1642923489035,1.1664,2494.2,2493.1,1.178]
[1642923489235,1.53733493,2494.0,2493.1,1.178]
[1642923489942,1.53733493,2494.0,2493.1,0.578]
[1642923490144,1.53733493,2494.0,2492.7,4.0503]
[1642923490340,1.53733493,2494.0,2492.7,4.3503]
[1642923490341,1.2193,2493.9,2492.7,4.3503]
[1642923490741,1.43357229,2493.2,2492.7,4.3503]
[1642923491143,1.43357229,2493.2,2492.7,0.6]
[1642923491342,1.43357229,2493.2,2492.5,0.878]
[1642923491540,1.2193,2493.9,2492.6,3.41015264]
[1642923491785,1.2193,2493.9,2492.7,0.06006787]
[1642923491984,1.2193,2493.9,2492.8,3.41012806]
[1642923492182,1.2193,2493.9,2492.6,1.178]
[1642923492384,1.2193,2493.9,2492.7,3.41013973]
[1642923492583,1.23814658,2493.2,2492.7,3.41013973]
[1642923492781,1.23814658,2493.2,2492.6,0.6]
[1642923492984,1.2193,2493.9,2492.6,0.3]
[1642923493284,1.2193,2493.9,2492.7,13.54432469]
[1642923493483,1.2193,2493.9,2492.8,6.13399957]
[1642923493790,1.2193,2493.9,2492.8,1.3]
[1642923494390,1.42140642,2493.3,2492.8,1.3]
[1642923494589,1.42140642,2493.3,2492.8,0.3]
[1642923495189,1.42140642,2493.3,2492.6,0.878]
[1642923495392,1.42140642,2493.3,2492.7,3.41034362]
[1642923495629,1.2193,2493.9,2492.8,1.04043247]
[1642923495828,1.2193,2493.9,2492.8,1.34043247]
[1642923496032,1.2193,2493.9,2492.8,1.6]
[1642923496232,0.68513137,2493.9,2492.8,0.6]
[1642923496435,1.33625161,2493.5,2492.8,0.3]
[1642923496631,1.33625161,2493.5,2492.6,1.178]
[1642923496835,1.33625161,2493.5,2492.7,3.41026357]
[1642923497235,1.33625161,2493.5,2492.8,1.0]
[1642923497436,1.33625161,2493.5,2492.8,1.3]
[1642923497635,1.33625161,2493.5,2492.6,0.878]
[1642923497834,1.2070302,2493.0,2492.6,1.178]
[1642923498035,0.68513137,2493.9,2492.6,1.178]
[1642923498940,29.8917653,2493.8,2492.6,0.578]
[1642923499134,1.3,2493.7,2492.4,0.23938973]
[1642923499385,1.6,2493.7,2492.5,3.41051318]
[1642923499584,1.3,2493.7,2492.5,3.71051318]
[1642923499781,1.19779157,2493.2,2492.5,3.71051318]
[1642923499982,1.19779157,2493.2,2492.5,0.3]
[1642923500183,1.19779157,2493.2,2492.4,0.23938973]
[1642923500483,1.19779157,2493.2,2492.5,3.41057289]
[1642923500682,1.19779157,2493.2,2492.5,3.71057289]
[1642923500884,1.19779157,2493.2,2492.5,0.3]
[1642923501084,0.68513137,2493.9,2492.5,0.3]
[1642923501385,0.98513137,2493.9,2492.6,3.41046008]
[1642923501589,0.98513137,2493.9,2492.8,0.03113358]
[1642923501590,0.68513137,2493.9,2492.8,0.03113358]
[1642923501785,0.68513137,2493.9,2493.0,0.04462337]
[1642923502182,1.5033923,2493.5,2492.9,0.3]
[1642923502581,1.5033923,2493.5,2492.7,1.178]
[1642923502784,0.68513137,2493.9,2492.7,1.178]
[1642923503431,0.68513137,2493.9,2492.9,0.02946963]
[1642923503630,0.68513137,2493.9,2492.9,1.0]
[1642923503830,1.37772739,2493.5,2492.9,1.0]
[1642923504032,1.37772739,2493.5,2492.7,1.178]
[1642923504433,0.68513137,2493.9,2493.5,3.63741306]
[1642923505536,1.29732338,2493.8,2493.5,3.63741306]
[1642923513334,1.29732338,2493.8,2493.6,0.06050067]
[1642923513535,1.29732338,2493.8,2493.5,3.63741306]
[1642923516702,24.72732338,2493.8,2493.5,3.63741306]
[1642923517402,24.72732338,2493.8,2493.5,3.63599351]
[1642923517803,1.29732338,2493.8,2493.5,3.63599351]
[1642923519446,1.27799724,2493.9,2493.5,3.63599351]
[1642923519652,7.7894,2494.2,2493.7,0.02670131]
[1642923519653,3.9468,2494.2,2493.7,0.02670131]
[1642923519850,10.8326,2495.2,2493.9,0.09902717]
[1642923520146,12.0075,2495.2,2494.0,0.03463065]
[1642923520446,13.47165922,2495.2,2494.1,0.578]
[1642923520746,7.48,2495.8,2494.1,0.578]
[1642923520747,8.44268619,2496.6,2494.2,8.39872253]
[1642923520946,2.3489,2496.5,2494.4,0.06969058]
[1642923521149,2.3489,2496.5,2494.5,9.18617057]
[1642923521346,2.3489,2496.5,2494.5,37.9263735]
[1642923521547,2.3489,2496.5,2494.6,4.6]
[1642923521791,2.3489,2496.5,2494.8,7.26120901]
[1642923521984,2.3489,2496.5,2495.1,7.54162463]
[1642923522186,5.5824,2496.9,2495.4,7.229]
[1642923522385,5.5824,2496.9,2495.5,5.51292344]
[1642923522584,2.3246,2497.3,2496.0,0.01292546]
[1642923522782,1.4687911,2497.2,2496.1,0.578]
[1642923522983,2.2746,2497.3,2496.1,0.878]
[1642923523390,2.2746,2497.3,2496.2,4.93492344]
[1642923523689,2.2746,2497.3,2496.3,1.0]
[1642923523890,2.2746,2497.3,2496.4,0.3]
[1642923524088,3.58927957,2497.3,2496.4,0.3]
[1642923524291,3.58927957,2497.3,2496.3,1.3]
[1642923524292,3.58927957,2497.3,2496.3,1.0]
[1642923524490,0.01224622,2497.7,2496.4,5.23492344]
[1642923524693,11.145,2497.9,2496.5,1.13819997]
[1642923524891,6.23846169,2497.9,2496.6,4.93492344]
[1642923525088,6.23846169,2497.9,2496.7,1.0]
[1642923525289,0.05702,2497.8,2496.7,1.0]
[1642923525540,1.49477349,2497.7,2496.5,4.52639994]
[1642923525746,0.05702,2497.6,2496.5,4.82639994]
[1642923525945,0.05702,2497.6,2496.6,1.0]
[1642923526746,0.05702,2497.6,2496.5,4.80439994]
[1642923526951,0.05702,2497.6,2496.5,4.22639994]
[1642923526952,1.31526011,2497.3,2496.5,4.22639994]
[1642923527257,0.05702,2497.2,2496.5,4.22639994]
[1642923528750,0.05702,2497.2,2496.5,4.0]
[1642923529390,23.48702,2497.2,2496.5,4.0]
[1642923529593,1.0,2497.1,2496.5,4.0]
[1642923529800,1.24881433,2496.9,2496.5,4.0]
[1642923529992,0.05702,2496.8,2496.5,4.0]
[1642923531193,1.05702,2496.8,2496.5,4.0]
[1642923531398,23.48702,2496.8,2496.5,4.0]
[1642923531892,4.65,2496.7,2495.7,1.5]
[1642923532096,0.01678332,2496.5,2495.7,1.5]
[1642923532300,0.00834753,2496.3,2495.7,1.5]
[1642923532495,0.05702,2496.2,2495.7,1.5]
[1642923532894,0.00319744,2496.1,2495.7,1.5]
[1642923533139,4.65,2495.8,2494.6,0.1602]
[1642923533338,0.01277914,2495.6,2494.6,0.1602]
[1642923533546,0.05704,2495.7,2494.6,0.1602]
[1642923533746,1.2222,2496.0,2494.6,0.1602]
[1642923534142,1.2222,2496.0,2494.6,5.77763044]
[1642923534342,1.2222,2496.0,2494.7,0.578]
[1642923534543,1.2222,2496.0,2494.8,6.56490486]
[1642923534745,1.2222,2496.0,2495.1,0.01209115]
[1642923534946,1.2222,2496.0,2495.2,0.578]
[1642923535145,1.2222,2496.0,2495.3,4.71669037]
[1642923536151,1.17676055,2496.4,2495.4,0.06245459]
[1642923536345,1.1669,2496.7,2495.4,1.06245459]
[1642923536544,0.1043513,2496.6,2495.5,6.06561037]
[1642923536791,0.1043513,2496.6,2495.5,6.64361037]
[1642923536985,0.1043513,2496.6,2495.6,1.6]
[1642923537189,0.1043513,2496.6,2495.7,4.80435107]
[1642923537386,0.1043513,2496.7,2495.7,4.80435107]
[1642923538087,0.1043513,2496.7,2495.9,0.02616382]
[1642923538288,0.1043513,2496.7,2495.9,4.65352025]
[1642923538486,0.1043513,2496.7,2495.8,0.3]
[1642923538689,0.1043513,2496.7,2495.6,5.87270395]
[1642923538690,1.44925563,2496.7,2495.6,5.87270395]
[1642923538887,0.1043513,2496.7,2495.7,1.0]
[1642923539088,0.1043513,2496.7,2495.8,4.99844006]
[1642923539493,0.1043513,2496.7,2495.9,1.0]
[1642923539894,0.1043513,2496.7,2495.6,5.73433591]
[1642923540097,0.1043513,2496.7,2495.7,1.0]
[1642923540535,0.1043513,2496.7,2495.5,0.578]
[1642923540735,0.1043513,2496.4,2495.5,0.878]
[1642923540935,0.1043513,2496.4,2495.5,0.3]
[1642923541535,0.1043513,2496.4,2495.3,4.67299512]
[1642923541938,0.1043513,2496.4,2495.4,1.0]
[1642923542140,0.1043513,2496.4,2495.4,0.3]
[1642923542540,0.1613913,2496.4,2495.3,1.3]
[1642923542743,0.1613913,2496.4,2495.3,1.0]
[1642923543141,0.1043513,2495.9,2495.3,4.57263247]
[1642923543439,0.1043513,2495.9,2495.3,4.52711789]
[1642923543642,0.05704,2496.8,2495.4,1.0]
[1642923543841,0.05704,2496.8,2495.4,1.3]
[1642923544040,0.05704,2496.8,2495.6,0.05017967]
[1642923544299,0.1043513,2496.6,2495.5,5.25655409]
[1642923544491,0.1043513,2496.6,2495.5,0.578]
[1642923544689,1.47313173,2496.6,2495.6,4.77525282]
[1642923544889,0.05702,2496.5,2495.6,4.77525282]
[1642923545091,0.05702,2496.5,2495.5,0.578]
[1642923545294,0.05702,2496.5,2495.6,4.66233021]
[1642923545493,0.1043513,2496.6,2495.6,4.66233021]
[1642923545691,0.1043513,2496.6,2495.7,1.0]
[1642923545891,0.1043513,2496.6,2495.8,5.98546117]
[1642923546091,0.1043513,2496.6,2495.9,1.578]
[1642923546291,0.1043513,2496.6,2496.0,5.00839437]
[1642923546491,0.1043513,2496.6,2496.1,0.578]
[1642923546692,0.1043513,2496.6,2496.2,4.54784117]
[1642923546892,0.1043513,2496.6,2496.2,4.84784117]
[1642923547095,0.1043513,2496.6,2496.1,0.578]
[1642923547293,0.1043513,2496.6,2495.8,0.578]
[1642923547695,0.1043513,2496.6,2495.9,4.64018623]
[1642923547898,0.1043513,2496.6,2495.8,0.578]
[1642923548150,1.59501664,2496.6,2495.8,0.578]
[1642923548555,1.59501664,2496.6,2495.8,0.878]
[1642923548755,0.1614613,2497.0,2495.8,0.878]
[1642923549759,0.1043513,2496.7,2495.8,0.878]
[1642923550161,0.05704,2497.4,2496.7,0.20870259]
[1642923550359,0.60866169,2497.9,2496.8,0.578]
[1642923550562,0.60866169,2497.9,2496.9,4.91760454]
[1642923550959,0.60866169,2497.9,2497.0,1.0]
[1642923551160,0.60866169,2497.9,2497.0,1.6]
[1642923552190,0.60866169,2497.9,2497.0,0.3]
[1642923552390,0.60866169,2497.9,2496.9,5.51760454]
[1642923552589,0.60866169,2497.9,2497.0,1.0]
[1642923552789,0.60866169,2497.9,2497.0,1.3]
[1642923552991,0.60866169,2497.9,2497.0,6.47975839]
[1642923553197,1.25055,2498.2,2497.1,4.50207268]
[1642923553394,0.05702,2498.3,2497.2,0.578]
[1642923553591,1.2165,2498.4,2497.3,5.21760454]
[1642923553791,1.2165,2498.4,2497.3,5.79560454]
[1642923553991,1.2165,2498.4,2497.4,1.3]
[1642923554191,1.2165,2498.4,2497.5,4.91760454]
[1642923554392,1.2165,2498.4,2497.5,5.21760454]
[1642923554592,1.460438,2498.5,2497.6,1.0]
[1642923554793,1.460438,2498.5,2497.6,1.578]
[1642923554992,1.460438,2498.5,2497.6,0.578]
[1642923555395,1.460438,2498.5,2497.6,4.578]
[1642923555638,0.05702,2498.4,2497.6,4.578]
[1642923555840,1.23096158,2498.3,2497.6,4.878]
[1642923556043,1.517298,2498.5,2497.7,4.70291586]
[1642923556246,1.517298,2498.5,2497.7,5.23091586]
[1642923556645,1.517298,2498.5,2497.8,1.0]
[1642923556842,1.460438,2498.5,2497.9,4.65928484]
[1642923557245,1.460438,2498.5,2498.0,0.578]
[1642923557444,1.460438,2498.5,2498.0,0.878]
[1642923558147,1.460438,2498.5,2498.1,4.54168781]
[1642923558454,1.460438,2498.5,2498.1,4.84168781]
[1642923558646,1.460438,2498.5,2498.1,4.80235084]
[1642923558845,1.460438,2498.5,2498.1,4.81038355]
[1642923559150,1.460438,2498.5,2498.2,6.08130791]
[1642923559151,0.82237268,2498.5,2498.2,6.08130791]
[1642923559406,0.82237268,2498.5,2498.4,4.40038]
[1642923559605,0.82237268,2498.5,2498.4,2.53838]
[1642923559804,0.04,2498.6,2498.4,2.53838]
[1642923560005,0.1,2499.0,2498.5,2.15]
[1642923560205,0.1,2499.0,2498.6,0.578]
[1642923560604,0.1,2499.0,2498.6,0.878]
[1642923561305,0.1,2499.0,2498.7,4.74942927]
[1642923561504,0.1,2499.0,2498.8,0.878]
[1642923561706,0.1,2499.0,2498.9,4.42840329]
[1642923561907,0.1,2499.0,2498.9,0.3]
[1642923562104,0.1,2499.0,2498.8,0.878]
[1642923562305,0.1,2499.0,2498.9,0.3]
[1642923562704,0.1,2499.0,2498.9,4.70234713]
[1642923562907,0.1,2499.0,2498.9,0.3]
[1642923563442,0.04,2499.7,2498.8,0.878]
[1642923563647,0.05453,2499.6,2498.9,4.82963339]
[1642923563841,0.09303,2499.7,2499.0,0.578]
[1642923564041,0.09303,2499.7,2499.0,0.878]
[1642923564445,0.09303,2499.7,2499.0,0.578]
[1642923565250,0.07102265,2499.6,2499.0,4.0]
[1642923565547,0.09303,2499.7,2499.0,4.0]
[1642923565548,0.05702,2499.5,2499.0,4.0]
[1642923565748,0.04690739,2499.4,2499.0,4.0]
[1642923565946,0.05702,2499.5,2499.0,4.0]
[1642923566153,1.22630033,2499.3,2499.0,4.0]
[1642923568493,0.05702,2499.2,2499.0,4.0]
[1642923569704,0.09702,2499.7,2499.0,4.0]
[1642923570536,0.02987022,2499.6,2499.0,4.0]
[1642923571136,1.21465431,2499.2,2499.0,4.0]
[1642923571541,0.09702,2499.7,2499.0,4.0]
[1642923571738,0.04,2499.7,2499.0,4.0]
[1642923572140,0.02697298,2499.6,2499.0,4.0]
[1642923572338,0.12376888,2499.7,2499.0,4.0]
[1642923572541,1.54100739,2499.1,2499.0,4.0]
[1642923572748,1.54100739,2499.1,2498.3,0.16]
[1642923572749,0.2421,2499.0,2498.3,0.16]
[1642923572946,0.0122548,2498.6,2498.3,0.16]
[1642923573144,0.0368188,2498.5,2498.3,0.16]
[1642923573347,0.0938688,2498.5,2497.3,3.8657]
[1642923573544,0.0938688,2498.5,2497.0,0.578]
[1642923573745,1.40338466,2497.8,2497.0,0.578]
[1642923573951,0.05705,2498.5,2498.1,3.63143857]
[1642923574400,0.05702,2498.6,2498.1,3.63143857]
[1642923574597,1.1829,2498.7,2498.1,3.63143857]
[1642923574797,1.19343714,2498.6,2498.1,3.63143857]
[1642923574999,1.1747,2498.8,2498.1,3.63143857]
[1642923575198,5.7739,2499.0,2498.2,0.578]
[1642923575599,5.7739,2499.0,2498.1,3.63143857]
[1642923575600,6.16412442,2498.9,2498.1,3.63143857]
[1642923575804,6.95179131,2498.9,2498.1,3.63143857]
[1642923576008,23.43,2498.7,2498.1,3.63143857]
[1642923576197,0.09408749,2498.6,2498.1,3.63143857]
[1642923576399,0.05691,2498.6,2498.1,3.63143857]
[1642923576798,1.42966373,2498.5,2498.1,3.63143857]
[1642923576998,0.05702,2498.4,2498.1,3.63143857]
[1642923578043,0.05702,2498.4,2496.9,0.578]
[1642923578044,4.72674827,2498.3,2496.9,0.578]
[1642923578247,0.03105149,2498.1,2496.6,0.80439994]
[1642923578447,0.05727,2498.0,2496.7,0.20870259]
[1642923578645,1.10990008,2497.3,2496.7,0.20870259]
[1642923578845,0.80990008,2497.3,2496.7,0.20870259]
[1642923579849,0.05777,2498.1,2496.7,0.20870259]
[1642923580450,0.35777,2498.1,2496.7,0.20870259]
[1642923580750,1.05777,2498.1,2496.7,0.20870259]
[1642923581051,1.45977535,2497.7,2496.7,0.20870259]
[1642923582188,1.40977535,2497.7,2496.7,0.20870259]
[1642923583893,1.40977535,2497.7,2496.8,0.02738818]
[1642923584497,0.02562219,2497.6,2496.7,0.20870259]
[1642923584695,1.40977535,2497.7,2496.7,0.20870259]
[1642923585095,6.85727,2498.1,2496.7,0.20870259]
[1642923585538,6.85727,2498.1,2496.8,0.578]
[1642923585940,6.85727,2498.1,2496.8,0.878]
[1642923586340,5.85727,2498.1,2496.8,0.878]
[1642923586741,5.7995,2498.1,2496.8,0.878]
[1642923587848,0.0819409,2498.0,2496.8,0.878]
[1642923588048,5.7995,2498.1,2496.8,0.878]
[1642923588049,1.3986654,2497.7,2496.8,0.878]
[1642923588251,5.7995,2498.1,2496.8,0.878]